bitfinex/quotes_BTCUSD_20251214
["timestamp","ask_amount","ask_price","bid_price","bid_amount"]
[1765752814334,0.01132669,88287.0,88279.0,0.01132772]
[1765752814543,0.22653032,88289.0,88279.0,0.02766772]
[1765752814544,0.01792,88286.0,88279.0,0.02766772]
[1765752814746,0.02924695,88285.0,88280.0,0.23787947]
[1765752814941,0.02924695,88285.0,88280.0,0.26160947]
[1765752815148,0.02924695,88285.0,88280.0,0.23787947]
[1765752815351,0.02924695,88285.0,88280.0,0.26160947]
[1765752815495,0.01132708,88284.0,88280.0,0.02373]
[1765752815701,0.0113272,88283.0,88280.0,0.01132759]
[1765752817930,0.0133272,88283.0,88280.0,0.01132759]
[1765752819277,0.0133272,88283.0,88280.0,0.02265531]
[1765752820185,0.002,88283.0,88280.0,0.2492049]
[1765752821892,0.002,88283.0,88282.0,0.22654674]
[1765752822094,0.002,88283.0,88280.0,0.2492049]
[1765752822835,0.002,88283.0,88282.0,0.22654674]
[1765752823029,0.003,88283.0,88282.0,0.22654674]
[1765752823403,0.001,88283.0,88282.0,0.22654674]
[1765752823607,0.03655443,88285.0,88282.0,0.23787407]
[1765752823839,0.002,88283.0,88282.0,0.01132733]
[1765752824213,0.002,88283.0,88282.0,0.23787407]
[1765752824615,0.02153776,88284.0,88282.0,0.23787407]
[1765752824819,0.04127704,88285.0,88282.0,0.23787407]
[1765752825235,0.03927704,88285.0,88282.0,0.23787407]
[1765752825439,0.002,88283.0,88282.0,0.23787407]
[1765752826684,0.001,88283.0,88282.0,0.23787407]
[1765752827028,0.001,88283.0,88282.0,0.27794407]
[1765752828083,0.001,88283.0,88282.0,0.25421407]
[1765752828282,0.003,88283.0,88282.0,0.25421407]
[1765752829533,0.003,88283.0,88282.0,0.39025406]
[1765752830114,0.003,88283.0,88282.0,0.27794407]
[1765752830748,0.003,88283.0,88282.0,0.39025406]
[1765752830956,0.001,88283.0,88282.0,0.39025406]
[1765752831193,0.01132643,88289.0,88286.0,0.01132682]
[1765752832412,0.01132643,88289.0,88286.0,0.01232682]
[1765752833240,0.01232643,88289.0,88286.0,0.03605682]
[1765752833417,0.01232643,88289.0,88286.0,0.01232682]
[1765752833618,0.01232643,88289.0,88286.0,0.03605682]
[1765752834733,0.01232643,88289.0,88287.0,0.02373]
[1765752835414,0.01232643,88289.0,88286.0,0.01232682]
[1765752835618,0.01232643,88289.0,88287.0,0.22653391]
[1765752835619,0.001,88289.0,88287.0,0.22653391]
[1765752835827,0.001,88289.0,88286.0,0.03505682]
[1765752836026,0.01144196,88291.0,88286.0,0.03505682]
[1765752836360,0.002,88289.0,88286.0,0.03505682]
[1765752836718,0.01144196,88291.0,88286.0,0.03505682]
[1765752836920,0.001,88289.0,88286.0,0.03519682]
[1765752837361,0.001,88289.0,88286.0,0.01132682]
[1765752837785,0.001,88289.0,88286.0,0.03619682]
[1765752838173,0.001,88289.0,88286.0,0.01232682]
[1765752838395,0.001,88289.0,88288.0,0.01649]
[1765752838749,0.001,88289.0,88288.0,0.04036]
[1765752839191,0.01144196,88291.0,88288.0,0.04036]
[1765752839392,0.00011578,88291.0,88290.0,0.01649]
[1765752840047,0.00011578,88291.0,88290.0,0.04036]
[1765752840708,0.00211578,88291.0,88290.0,0.04036]
[1765752841576,0.00311578,88291.0,88290.0,0.04036]
[1765752844594,0.00311578,88291.0,88290.0,0.15377019]
[1765752846273,0.00011578,88291.0,88290.0,0.15377019]
[1765752846481,0.00011578,88291.0,88290.0,0.15577019]
[1765752847783,0.00011578,88291.0,88290.0,0.26808018]
[1765752850177,0.00011578,88291.0,88290.0,0.28600018]
[1765752856522,0.00011578,88291.0,88290.0,0.17369019]
[1765752856790,0.00011578,88291.0,88290.0,0.28600018]
[1765752866981,0.00011578,88291.0,88290.0,0.57670018]
[1765752867350,2.857e-05,88291.0,88290.0,0.57670018]
[1765752867731,2.857e-05,88291.0,88290.0,0.57470018]
[1765752868068,2.857e-05,88291.0,88290.0,0.57770018]
[1765752868269,2.857e-05,88291.0,88290.0,0.57970018]
[1765752868553,2.857e-05,88291.0,88290.0,0.57670018]
[1765752868904,0.00102857,88291.0,88290.0,0.58070018]
[1765752869750,0.01788,88317.0,88314.0,0.01132323]
[1765752869947,0.01788,88317.0,88316.0,0.36734972]
[1765752870356,0.01788,88317.0,88316.0,0.39228972]
[1765752870933,0.01988,88317.0,88316.0,0.39228972]
[1765752871386,0.02288,88317.0,88316.0,0.39228972]
[1765752871634,0.02088,88317.0,88316.0,0.39228972]
[1765752872021,0.02388,88317.0,88316.0,0.39228972]
[1765752872224,0.02088,88317.0,88316.0,0.39228972]
[1765752872368,0.01788,88317.0,88316.0,0.39228972]
[1765752872564,0.02088,88317.0,88316.0,0.39228972]
[1765752877445,0.003,88317.0,88316.0,0.50459971]
[1765752878201,0.003,88317.0,88316.0,0.39228972]
[1765752880314,0.003,88317.0,88316.0,0.50459971]
[1765752881337,0.003,88317.0,88316.0,0.39228972]
[1765752882345,0.003,88317.0,88316.0,0.39682134]
[1765752883677,0.003,88317.0,88316.0,0.50913133]
[1765752886249,0.002,88317.0,88316.0,0.50913133]
[1765752887025,0.002,88317.0,88316.0,0.51213133]
[1765752887476,0.0004,88322.0,88321.0,0.22644671]
[1765752887673,0.0004,88322.0,88321.0,0.3911767]
[1765752888284,0.0004,88322.0,88321.0,0.39570791]
[1765752889295,0.0004,88322.0,88321.0,0.39770791]
[1765752899165,0.0004,88322.0,88321.0,0.37830391]
[1765752900333,0.00201287,88322.0,88321.0,0.05895121]
[1765752900543,0.22845701,88322.0,88321.0,0.00653121]
[1765752900932,0.22845701,88322.0,88321.0,0.002]
[1765752901460,0.00201287,88322.0,88321.0,0.002]
[1765752901702,0.00201287,88322.0,88318.0,0.23777649]
[1765752901703,0.00201287,88322.0,88320.0,0.2264481]
[1765752901919,0.00301287,88322.0,88319.0,0.01132259]
[1765752902063,0.00301287,88322.0,88317.0,0.01132284]
[1765752902064,0.12508983,88322.0,88317.0,0.01132284]
[1765752902419,0.12508983,88322.0,88315.0,0.03399138]
[1765752902420,0.01132297,88316.0,88315.0,0.03399138]
[1765752902556,0.01293584,88316.0,88315.0,0.03399138]
[1765752903594,0.01132361,88311.0,88308.0,0.011324]
[1765752903800,0.01132361,88311.0,88309.0,0.03399138]
[1765752904997,0.22647491,88310.0,88309.0,0.03399138]
[1765752905355,0.01132669,88287.0,88280.0,0.25004941]
[1765752905688,0.01132669,88287.0,88284.0,0.01132708]
[1765752906117,0.23785065,88291.0,88286.0,0.01132682]
[1765752906342,0.01132618,88291.0,88286.0,0.01132682]
[1765752906536,0.01132618,88291.0,88287.0,0.01132669]
[1765752907082,0.11236763,88294.0,88293.0,0.22651852]
[1765752907817,0.01132451,88304.0,88299.0,0.22650177]
[1765752908016,0.23779383,88312.0,88305.0,0.22648695]
[1765752908216,0.01132387,88309.0,88306.0,0.01132425]
[1765752908424,0.011324,88308.0,88305.0,0.01132438]
[1765752910403,0.013324,88308.0,88305.0,0.01132438]
[1765752910776,0.015324,88308.0,88305.0,0.01132438]
[1765752911620,0.01132413,88307.0,88302.0,0.01132477]
[1765752911829,0.01132413,88307.0,88303.0,0.23781689]
[1765752912183,0.01132413,88307.0,88303.0,0.01132464]
[1765752912976,0.011324,88308.0,88304.0,0.03551451]
[1765752913351,0.002,88307.0,88304.0,0.03551451]
[1765752913637,0.001,88307.0,88305.0,0.03636]
[1765752913849,0.002,88307.0,88306.0,0.02419]
[1765752914068,0.01332413,88307.0,88304.0,0.01132451]
[1765752914286,0.12369176,88307.0,88304.0,0.01132451]
[1765752914498,0.12569176,88307.0,88304.0,0.01132451]
[1765752914751,0.12369176,88307.0,88304.0,0.01132451]
[1765752914978,0.02985423,88307.0,88304.0,0.01132451]
[1765752915936,0.0165301,88307.0,88305.0,0.22648774]
[1765752916150,0.0185301,88307.0,88305.0,0.22648774]
[1765752917137,0.0185301,88307.0,88304.0,0.01132451]
[1765752917561,0.0205301,88307.0,88304.0,0.01132451]
[1765752917985,0.0185301,88307.0,88304.0,0.01132451]
[1765752919123,0.0165301,88307.0,88304.0,0.01132451]
[1765752919322,0.0205301,88307.0,88304.0,0.01132451]
[1765752919693,0.02813716,88306.0,88304.0,0.01132451]
[1765752920975,0.03213716,88306.0,88304.0,0.01132451]
[1765752924671,0.03213716,88306.0,88304.0,0.26200241]
[1765752925073,0.03213716,88306.0,88304.0,0.23781241]
[1765752925984,0.004,88306.0,88304.0,0.23781241]
[1765752935587,0.004,88306.0,88305.0,0.02063925]
[1765752936710,0.002,88306.0,88305.0,0.02063925]
[1765752936899,0.02410674,88310.0,88307.0,0.01132413]
[1765752937123,0.01788,88311.0,88308.0,0.011324]
[1765752938051,0.01788,88311.0,88309.0,0.22647748]
[1765752938455,0.02813716,88310.0,88309.0,0.22647748]
[1765752938674,0.02813716,88310.0,88308.0,0.011324]
[1765752938875,0.002,88310.0,88308.0,0.23780177]
[1765752939257,0.01788,88311.0,88308.0,0.23780177]
[1765752939458,0.02088,88311.0,88308.0,0.23780177]
[1765752939625,0.002,88310.0,88308.0,0.23780177]
[1765752940031,0.003,88310.0,88308.0,0.23780177]
[1765752940210,0.01788,88311.0,88308.0,0.23780177]
[1765752940412,0.01988,88311.0,88308.0,0.23780177]
[1765752941424,0.01788,88311.0,88308.0,0.23780177]
[1765752941659,0.02088,88311.0,88308.0,0.23780177]
[1765752941835,0.002,88310.0,88308.0,0.23780177]
[1765752942436,0.02088,88311.0,88308.0,0.23780177]
[1765752942638,0.02288,88311.0,88308.0,0.23780177]
[1765752942843,0.01988,88311.0,88308.0,0.23780177]
[1765752943042,0.02813716,88310.0,88308.0,0.23780177]
[1765752943244,0.03113716,88310.0,88308.0,0.23780177]
[1765752943451,0.02813716,88310.0,88308.0,0.23780177]
[1765752943605,0.03013716,88310.0,88308.0,0.23780177]
[1765752943812,0.14250479,88310.0,88308.0,0.23780177]
[1765752944021,0.03013716,88310.0,88308.0,0.23780177]
[1765752945238,0.002,88310.0,88308.0,0.23780177]
[1765752945627,0.005,88310.0,88308.0,0.23780177]
[1765752946390,0.03313716,88310.0,88308.0,0.23780177]
[1765752947414,0.03313716,88310.0,88308.0,0.35111914]
[1765752948270,0.03313716,88310.0,88309.0,0.02369]
[1765752948471,0.005,88310.0,88309.0,0.03977]
[1765752949399,0.00161287,88316.0,88313.0,0.01132336]
[1765752949778,0.00161287,88316.0,88314.0,0.22646466]
[1765752950374,0.00161287,88316.0,88313.0,0.2377888]
[1765752950611,0.00161287,88316.0,88314.0,0.02369]
[1765752951103,0.00161287,88316.0,88313.0,0.2377888]
[1765752951512,0.00461287,88316.0,88313.0,0.2377888]
[1765752952501,0.00861287,88316.0,88313.0,0.2377888]
[1765752955194,0.0113231,88315.0,88311.0,0.02378361]
[1765752956148,0.01693584,88316.0,88313.0,0.01132336]
[1765752956391,0.01293584,88316.0,88313.0,0.01132336]
[1765752956773,0.003,88315.0,88313.0,0.01132336]
[1765752956972,0.01293584,88316.0,88313.0,0.01132336]
[1765752957380,0.003,88315.0,88313.0,0.01132336]
[1765752957746,0.045073,88316.0,88313.0,0.01132336]
[1765752958178,0.048073,88316.0,88313.0,0.01132336]
[1765752958613,0.03675003,88316.0,88313.0,0.01132336]
[1765752958832,0.00861287,88316.0,88313.0,0.01132336]
[1765752959237,0.00461287,88316.0,88313.0,0.01132336]
[1765752959540,0.004,88315.0,88313.0,0.01132336]
[1765752959717,0.00461287,88316.0,88313.0,0.01132336]
[1765752959920,0.00461287,88316.0,88312.0,0.23779147]
[1765752960119,0.00861287,88316.0,88312.0,0.23779147]
[1765752960419,0.00461287,88316.0,88314.0,0.22646423]
[1765752960589,0.00161287,88316.0,88314.0,0.22646423]
[1765752960788,0.004,88315.0,88314.0,0.22646423]
[1765752961026,0.003,88315.0,88314.0,0.22646423]
[1765752961545,0.00161287,88316.0,88314.0,0.22646423]
[1765752961729,0.00461287,88316.0,88314.0,0.22646423]
[1765752962308,0.00461287,88316.0,88315.0,0.02346]
[1765752962515,0.00161287,88316.0,88315.0,0.02346]
[1765752962697,0.00161287,88316.0,88314.0,0.22646423]
[1765752962896,0.00561287,88316.0,88314.0,0.22646423]
[1765752963095,0.00161287,88316.0,88314.0,0.22646423]
[1765752963538,0.00561287,88316.0,88314.0,0.22646423]
[1765752963693,0.003,88315.0,88314.0,0.22646423]
[1765752964114,0.00561287,88316.0,88314.0,0.22646423]
[1765752964473,0.00861287,88316.0,88314.0,0.22646423]
[1765752967063,0.00861287,88316.0,88314.0,0.22646466]
[1765752968040,0.00861287,88316.0,88313.0,0.01132336]
[1765752968817,0.00461287,88316.0,88313.0,0.01132336]
[1765752969243,0.00861287,88316.0,88313.0,0.01132336]
[1765752969450,0.00861287,88316.0,88313.0,0.23778807]
[1765752969645,0.00861287,88316.0,88313.0,0.26124807]
[1765752969850,0.00561287,88316.0,88313.0,0.26124807]
[1765752970046,0.00861287,88316.0,88313.0,0.26124807]
[1765752970308,0.00861287,88316.0,88313.0,0.23778807]
[1765752972270,0.00861287,88316.0,88314.0,0.22646226]
[1765752973010,0.00561287,88316.0,88314.0,0.22646226]
[1765752973399,0.00861287,88316.0,88314.0,0.22646226]
[1765752974605,0.00461287,88316.0,88314.0,0.22646226]
[1765752974797,0.00861287,88316.0,88314.0,0.22646226]
[1765752978670,0.00461287,88316.0,88314.0,0.22646226]
[1765752979437,0.00161287,88316.0,88314.0,0.22646226]
[1765752992251,0.00161287,88316.0,88313.0,0.23778807]
[1765752993356,0.00161287,88316.0,88314.0,0.22646228]
[1765753000741,0.00161287,88316.0,88314.0,0.25070228]
[1765753000950,0.00161287,88316.0,88314.0,0.22646228]
[1765753003142,0.00161287,88316.0,88315.0,0.02920246]
[1765753020551,0.1139805,88316.0,88315.0,0.02920246]
[1765753021722,0.00161287,88316.0,88315.0,0.02920246]
[1765753022104,0.011324,88308.0,88303.0,0.22649223]
[1765753022268,0.11236763,88307.0,88306.0,0.01132425]
[1765753022464,0.13024763,88307.0,88306.0,0.01132425]
[1765753023712,0.01788,88307.0,88306.0,0.01132425]
[1765753029532,0.11236763,88305.0,88304.0,0.02813716]
[1765753029724,0.11236763,88291.0,88288.0,0.01132656]
[1765753029940,0.11236763,88291.0,88289.0,0.22652878]
[1765753030998,0.11236763,88291.0,88289.0,0.22752878]
[1765753031378,0.11236763,88291.0,88289.0,0.22652878]
[1765753031582,0.11436763,88291.0,88289.0,0.22652878]
[1765753032574,0.11536763,88291.0,88289.0,0.22652878]
[1765753036187,0.11536763,88291.0,88288.0,0.01132656]
[1765753036900,0.11336763,88291.0,88288.0,0.01132656]
[1765753037291,0.11436763,88291.0,88288.0,0.01132656]
[1765753037808,0.11336763,88291.0,88288.0,0.01132656]
[1765753038011,0.11436763,88291.0,88288.0,0.01132656]
[1765753038460,0.11236763,88290.0,88288.0,0.01132656]
[1765753039935,0.11336763,88290.0,88288.0,0.01132656]
[1765753040770,0.11436763,88290.0,88288.0,0.01132656]
[1765753041310,0.02813716,88289.0,88288.0,0.01132656]
[1765753042222,0.001,88290.0,88288.0,0.01132656]
[1765753042428,0.001,88289.0,88288.0,0.01132656]
[1765753043433,0.002,88289.0,88288.0,0.01132656]
[1765753043638,0.001,88289.0,88288.0,0.01132656]
[1765753043837,0.02913716,88289.0,88288.0,0.01132656]
[1765753044866,0.03013716,88289.0,88288.0,0.01132656]
[1765753054329,0.14250479,88289.0,88288.0,0.01132656]
[1765753060031,0.03013716,88289.0,88288.0,0.01132656]
[1765753060258,0.14250479,88289.0,88288.0,0.01132656]
[1765753060669,0.03013716,88289.0,88288.0,0.01132656]
[1765753060876,0.14250479,88289.0,88288.0,0.01132656]
[1765753067312,0.03013716,88289.0,88288.0,0.01132656]
[1765753068790,0.002,88289.0,88288.0,0.01132656]
[1765753068995,0.03013716,88289.0,88288.0,0.01132656]
[1765753069420,0.02913716,88289.0,88288.0,0.01132656]
[1765753069785,0.02813716,88289.0,88288.0,0.01132656]
[1765753069998,0.02813716,88290.0,88288.0,0.01132656]
[1765753071388,0.02813716,88290.0,88288.0,0.01232656]
[1765753071825,0.02813716,88290.0,88288.0,0.01132656]
[1765753072192,0.02813716,88290.0,88288.0,0.01232656]
[1765753072402,0.02813716,88291.0,88288.0,0.01232656]
[1765753072598,0.03946334,88291.0,88288.0,0.001]
[1765753072971,0.26598743,88291.0,88288.0,0.001]
[1765753073191,0.23785027,88291.0,88286.0,0.01132682]
[1765753073410,0.11236763,88288.0,88287.0,0.01132669]
[1765753075295,0.11236763,88288.0,88287.0,0.01232669]
[1765753081524,0.1123939,88288.0,88287.0,0.01232669]
[1765753090289,0.03946347,88290.0,88287.0,0.01232669]
[1765753091220,0.03946347,88290.0,88287.0,0.01132669]
[1765753091452,0.03946347,88290.0,88287.0,0.01232669]
[1765753093863,0.02813716,88290.0,88288.0,0.23845135]
[1765753094087,0.04532815,88310.0,88304.0,0.01132451]
[1765753094284,0.03400441,88310.0,88307.0,0.02784]
[1765753094536,0.0113231,88315.0,88307.0,0.02784]
[1765753094693,0.01132348,88312.0,88307.0,0.05168]
[1765753094896,0.01132361,88311.0,88307.0,0.05168]
[1765753095098,0.01132374,88310.0,88307.0,0.05168]
[1765753095343,0.00107426,88308.0,88307.0,0.05168]
[1765753095753,7.426e-05,88308.0,88307.0,0.05168]
[1765753095988,0.00207426,88308.0,88307.0,0.05168]
[1765753096191,0.00207426,88308.0,88307.0,0.16509019]
[1765753097193,0.00407426,88308.0,88307.0,0.16509019]
[1765753097737,0.00207426,88308.0,88307.0,0.16509019]
[1765753097917,7.426e-05,88308.0,88307.0,0.16509019]
[1765753103390,7.426e-05,88308.0,88307.0,0.16609019]
[1765753104380,7.426e-05,88308.0,88307.0,0.16709019]
[1765753106274,7.426e-05,88308.0,88307.0,0.27940018]
[1765753110467,7.426e-05,88308.0,88307.0,0.57010018]
[1765753111055,7.426e-05,88308.0,88307.0,0.56910018]
[1765753111483,7.426e-05,88308.0,88307.0,0.57310018]
[1765753111694,7.426e-05,88308.0,88307.0,0.57210018]
[1765753111911,7.426e-05,88308.0,88307.0,0.57610018]
[1765753112121,7.426e-05,88308.0,88307.0,0.62611857]
[1765753112958,0.0004,88322.0,88321.0,0.11230999]
[1765753113165,0.0004,88322.0,88321.0,0.13898999]
[1765753113371,0.0004,88322.0,88321.0,0.16393999]
[1765753113580,0.0004,88322.0,88321.0,0.16847112]
[1765753114091,0.0004,88322.0,88321.0,0.28188131]
[1765753114290,0.0004,88322.0,88321.0,0.16957132]
[1765753114493,0.0004,88322.0,88321.0,0.28188131]
[1765753114699,0.0004,88322.0,88321.0,0.28288131]
[1765753115100,0.0004,88322.0,88321.0,0.28388131]
[1765753117354,0.0004,88322.0,88321.0,0.28288131]
[1765753117699,0.0004,88322.0,88321.0,0.28488131]
[1765753118103,0.0004,88322.0,88321.0,0.28788131]
[1765753122755,0.0001,88356.0,88355.0,0.22635957]
[1765753122966,0.01131541,88375.0,88370.0,0.01131605]
[1765753123170,0.01131541,88375.0,88374.0,0.01131554]
[1765753123171,0.00038559,88375.0,88374.0,0.01131554]
[1765753123368,0.00038559,88375.0,88374.0,0.02670554]
[1765753123574,0.00038559,88375.0,88374.0,0.05165554]
[1765753124594,0.00338559,88375.0,88374.0,0.05165554]
[1765753124923,0.00638559,88375.0,88374.0,0.05165554]
[1765753125509,0.00338559,88375.0,88374.0,0.16396553]
[1765753125710,0.00338559,88375.0,88374.0,0.16496553]
[1765753125923,0.00338559,88375.0,88374.0,0.05265554]
[1765753126142,0.00038559,88375.0,88374.0,0.16496553]
[1765753127274,0.00038559,88375.0,88374.0,0.27837572]
[1765753129789,0.00038559,88375.0,88374.0,0.61909411]
[1765753131087,0.00038559,88375.0,88374.0,0.61809411]
[1765753131290,0.00038559,88375.0,88374.0,0.62209411]
[1765753131657,0.0004,88380.0,88374.0,0.62209411]
[1765753131658,0.0004,88380.0,88379.0,0.38862648]
[1765753131922,0.00048729,88380.0,88379.0,0.42189648]
[1765753132117,0.00048729,88380.0,88379.0,0.44684648]
[1765753132724,0.00048729,88380.0,88379.0,0.73754648]
[1765753133108,0.00048729,88380.0,88379.0,0.73954648]
[1765753133634,0.00048729,88380.0,88379.0,0.74407381]
[1765753133841,0.00048729,88380.0,88379.0,0.72619381]
[1765753134001,0.00048729,88380.0,88379.0,0.69605542]
[1765753136891,0.00048729,88380.0,88379.0,0.63783542]
[1765753137099,0.3407896,88380.0,88379.0,0.004]
[1765753137508,0.00210016,88380.0,88379.0,0.004]
[1765753137732,0.00048729,88380.0,88379.0,0.05498421]
[1765753137944,0.00048729,88380.0,88379.0,0.05298421]
[1765753138153,0.00048729,88380.0,88379.0,0.1663944]
[1765753138499,0.01131132,88407.0,88396.0,0.22625458]
[1765753138668,0.01131017,88416.0,88396.0,0.68090457]
[1765753139075,0.02918914,88424.0,88396.0,0.68090457]
[1765753139278,0.01130991,88418.0,88396.0,0.68090457]
[1765753139441,0.22619163,88421.0,88396.0,0.68090457]
[1765753139644,0.01131004,88417.0,88396.0,0.56859458]
[1765753139833,0.01131017,88416.0,88396.0,0.56859458]
[1765753140030,0.0012,88397.0,88396.0,0.56859458]
[1765753140521,0.0012,88397.0,88396.0,0.73092296]
[1765753140824,0.01130901,88425.0,88396.0,0.73092296]
[1765753140825,0.01130901,88425.0,88420.0,0.01130965]
[1765753140954,0.01130914,88424.0,88421.0,0.01130953]
[1765753141159,0.01130914,88424.0,88421.0,0.04639953]
[1765753141369,0.01142462,88425.0,88424.0,0.22618293]
[1765753141370,0.00011561,88425.0,88424.0,0.22618293]
[1765753141620,0.00011561,88425.0,88424.0,0.24273293]
[1765753141785,0.00011561,88425.0,88424.0,0.26581293]
[1765753142014,0.00011561,88425.0,88424.0,0.03963]
[1765753142415,0.00411561,88425.0,88424.0,0.03963]
[1765753142614,0.00411561,88425.0,88424.0,0.01655]
[1765753142826,0.00411561,88425.0,88416.0,0.13673036]
[1765753142827,0.01130965,88420.0,88416.0,0.13673036]
[1765753143094,0.0113094,88422.0,88419.0,0.01130978]
[1765753143314,0.2375055,88419.0,88416.0,0.12542019]
[1765753143517,0.01131017,88416.0,88412.0,0.11341019]
[1765753143722,0.00211561,88425.0,88421.0,0.22619061]
[1765753143919,0.00211561,88425.0,88424.0,0.24273293]
[1765753144143,0.00211561,88425.0,88424.0,0.26581293]
[1765753144313,0.00111561,88425.0,88424.0,0.26581293]
[1765753144674,0.00111561,88425.0,88424.0,0.37812292]
[1765753145102,0.00011561,88425.0,88424.0,0.37812292]
[1765753146092,0.00111561,88425.0,88424.0,0.66882292]
[1765753146292,0.002,88425.0,88424.0,0.66882292]
[1765753146495,0.2261141,88451.0,88444.0,0.01130658]
[1765753146735,0.01130556,88452.0,88449.0,0.01655]
[1765753146935,0.00011557,88452.0,88449.0,0.02785595]
[1765753147138,0.00011557,88452.0,88451.0,0.01655]
[1765753147552,0.00011557,88452.0,88451.0,0.03963]
[1765753148128,0.00111557,88452.0,88451.0,0.03963]
[1765753149260,0.00111557,88452.0,88451.0,0.15193999]
[1765753149698,0.00111557,88452.0,88451.0,0.15393999]
[1765753149906,0.00011557,88452.0,88451.0,0.15393999]
[1765753150107,0.00011557,88452.0,88451.0,0.15193999]
[1765753150392,0.00011557,88452.0,88451.0,0.15293999]
[1765753151356,0.00011557,88452.0,88450.0,0.05]
[1765753151357,0.22611389,88451.0,88450.0,0.05]
[1765753151544,0.01130697,88441.0,88439.0,0.01201]
[1765753151970,0.22614201,88440.0,88439.0,0.01201]
[1765753152175,0.22614201,88440.0,88439.0,0.03509]
[1765753152355,0.01130697,88441.0,88439.0,0.05164]
[1765753152562,0.01130697,88441.0,88440.0,0.03963]
[1765753153149,0.01130697,88441.0,88434.0,0.12542019]
[1765753153150,0.22615477,88436.0,88434.0,0.12542019]
[1765753153345,0.01130748,88437.0,88429.0,0.12542019]
[1765753153346,0.23747218,88432.0,88429.0,0.12542019]
[1765753153584,0.01130927,88423.0,88418.0,0.02331991]
[1765753153801,0.01131029,88415.0,88411.0,0.01201]
[1765753153999,0.22620987,88414.0,88411.0,0.01201]
[1765753154306,0.22620987,88414.0,88410.0,0.01131093]
[1765753154307,0.00161287,88414.0,88410.0,0.01131093]
[1765753154549,0.00161287,88414.0,88411.0,0.0113108]
[1765753154751,0.00161287,88414.0,88412.0,0.1135258]
[1765753155735,0.00361287,88414.0,88413.0,0.22621107]
[1765753156535,0.00461287,88414.0,88413.0,0.22621107]
[1765753156971,0.00361287,88414.0,88413.0,0.22621107]
[1765753157388,0.00561287,88414.0,88413.0,0.22621107]
[1765753157606,0.00361287,88414.0,88413.0,0.22621107]
[1765753157783,0.00561287,88414.0,88413.0,0.22621107]
[1765753157919,0.00561287,88414.0,88412.0,0.1135258]
[1765753158546,0.00561287,88414.0,88413.0,0.22621107]
[1765753158745,0.00361287,88414.0,88413.0,0.22621107]
[1765753158946,0.00161287,88414.0,88413.0,0.22621107]
[1765753159149,0.22615203,88437.0,88430.0,0.01130837]
[1765753159360,0.01788,88437.0,88436.0,0.11341019]
[1765753160081,0.01788,88437.0,88436.0,0.15304019]
[1765753160481,0.01788,88437.0,88436.0,0.12996019]
[1765753161199,0.01788,88437.0,88436.0,0.15304019]
[1765753161343,0.02288,88437.0,88436.0,0.15304019]
[1765753161753,0.02688,88437.0,88436.0,0.15304019]
[1765753162111,0.009,88437.0,88436.0,0.15304019]
[1765753162937,0.005,88437.0,88436.0,0.15304019]
[1765753163352,0.007,88437.0,88436.0,0.15304019]
[1765753164106,0.002,88437.0,88436.0,0.15304019]
[1765753164837,0.004,88437.0,88436.0,0.15304019]
[1765753165238,0.002,88437.0,88436.0,0.15304019]
[1765753165648,0.01130684,88442.0,88439.0,0.01130722]
[1765753165850,0.22612479,88447.0,88441.0,0.25469791]
[1765753166050,0.22612479,88447.0,88443.0,0.01130671]
[1765753166355,0.01130646,88445.0,88442.0,0.05093684]
[1765753166554,0.22612479,88447.0,88442.0,0.05093684]
[1765753166795,0.22612479,88447.0,88443.0,0.01130671]
[1765753166964,0.01130607,88448.0,88445.0,0.02825]
[1765753167351,0.01130607,88448.0,88445.0,0.05201]
[1765753167551,0.002,88446.0,88445.0,0.05201]
[1765753167754,0.01130607,88448.0,88445.0,0.05201]
[1765753168185,0.01430607,88448.0,88445.0,0.02825]
[1765753168389,0.002,88446.0,88445.0,0.02825]
[1765753168554,0.002,88446.0,88445.0,0.05201]
[1765753168754,0.005,88446.0,88445.0,0.05201]
[1765753168957,0.003,88446.0,88445.0,0.05201]
[1765753169151,0.01130607,88448.0,88445.0,0.05201]
[1765753169152,0.01130607,88448.0,88445.0,0.06331646]
[1765753169352,0.002,88448.0,88446.0,0.22612667]
[1765753169833,0.03944298,88450.0,88447.0,0.0512162]
[1765753170042,0.01130582,88450.0,88449.0,0.01615]
[1765753170575,0.01130518,88455.0,88451.0,0.01130569]
[1765753170833,0.23752609,88455.0,88453.0,0.11341019]
[1765753171052,0.01130531,88454.0,88451.0,0.01130569]
[1765753171278,0.22610878,88453.0,88450.0,0.11341019]
[1765753171483,0.1123939,88451.0,88450.0,0.11341019]
[1765753171686,0.01130531,88454.0,88450.0,0.11341019]
[1765753172361,0.22610878,88453.0,88450.0,0.11341019]
[1765753172536,0.23010878,88453.0,88450.0,0.11341019]
[1765753172748,0.01130556,88452.0,88450.0,0.11341019]
[1765753173105,0.23010878,88453.0,88450.0,0.11341019]
[1765753173106,0.01530543,88453.0,88450.0,0.11341019]
[1765753173752,0.01430543,88453.0,88450.0,0.12471601]
[1765753174565,0.01830543,88453.0,88450.0,0.12471601]
[1765753174901,0.24441466,88453.0,88450.0,0.11341019]
[1765753175107,0.01830543,88453.0,88450.0,0.11341019]
[1765753176446,0.01830543,88453.0,88450.0,0.12471601]
[1765753177053,0.007,88453.0,88450.0,0.12471601]
[1765753178057,0.007,88453.0,88450.0,0.35083001]
[1765753180856,0.01830543,88453.0,88450.0,0.12471601]
[1765753182312,0.007,88453.0,88450.0,0.12471601]
[1765753183671,0.24441458,88453.0,88450.0,0.11341019]
[1765753183872,0.01830543,88453.0,88450.0,0.11341019]
[1765753184076,0.01830543,88453.0,88450.0,0.12471601]
[1765753184286,0.01830543,88453.0,88443.0,0.24989228]
[1765753184287,0.1123939,88450.0,88434.0,0.01130786]
[1765753184483,0.1123939,88450.0,88426.0,0.01130889]
[1765753184484,0.01130837,88430.0,88426.0,0.01130889]
[1765753184684,0.01130837,88430.0,88423.0,0.01130927]
[1765753184685,0.01130837,88430.0,88425.0,0.01130901]
[1765753184907,0.01130825,88431.0,88427.0,0.01130876]
[1765753185120,0.01130799,88433.0,88428.0,0.23748133]
[1765753185280,0.01130825,88431.0,88426.0,0.01130889]
[1765753185480,0.01130825,88431.0,88427.0,0.01130876]
[1765753185691,0.01130799,88433.0,88429.0,0.0113085]
[1765753186897,0.01230799,88433.0,88429.0,0.0113085]
[1765753187108,0.001,88433.0,88430.0,0.01130837]
[1765753189163,0.01130786,88434.0,88431.0,0.01130825]
[1765753190648,0.001,88434.0,88432.0,0.01130812]
[1765753191546,0.1123939,88433.0,88432.0,0.01130812]
[1765753192977,0.1123939,88432.0,88431.0,0.01130825]
[1765753193546,0.1123939,88431.0,88430.0,0.01130837]
[1765753193886,0.01130799,88433.0,88429.0,0.23747778]
[1765753194064,0.1123939,88430.0,88429.0,0.23747778]